lending/lending_fUSD_20240111
["ID","MTS","AMOUNT","RATE_DAILY","PERIOD"]
[311224072,1704986970440,-1000.0,0.00026431,2]
[311224073,1704986970461,-729.44024601,0.00026432,2]
[311224074,1704986970482,-267.22,0.00026669,2]
[311224075,1704986970504,-180.38,0.00027291,2]
[311224076,1704986970526,-436.13,0.00027569,2]
[311224077,1704986970548,-920.0,0.00027579,2]
[311224078,1704986970568,-436.13,0.00027728,2]
[311224079,1704986970588,-167.0,0.00027736,2]
[311224080,1704986970607,-436.13,0.00027888,2]
[311224081,1704986970627,-436.13,0.00028047,2]
[311224082,1704986970648,-156.57,0.00028203,2]
[311224083,1704986970667,-258.27488912,0.00028206,2]
[311224085,1704986973096,-155.0,0.00024388,2]
[311224086,1704986973117,-177.85511088,0.00028206,2]
[311224087,1704986973137,-246.59691891,0.00028239,2]
[311224088,1704986973159,-694.45413701,0.00028239,2]
[311224089,1704986973180,-406.04618719,0.0002824,2]
[311224090,1704986973200,-62.64380994,0.00028241,2]
[311224092,1704986973253,1275.9560583,0.00024388,5]
[311224093,1704986974105,-187.35619006,0.00028241,2]
[311224094,1704986974126,-4196.0517412,0.00028241,2]
[311224095,1704986985328,133.2775417,0.00025,2]
[311224118,1704987031901,-155.0,0.00024387,2]
[311224119,1704987031911,-4919.10936439,0.00024387,2]
[311224120,1704987031920,-300.0,0.00024388,2]
[311224121,1704987031929,-1263.48536463,0.00024388,5]
[311224122,1704987031939,-49.89627818,0.00025,2]
[311224123,1704987031948,-155.0,0.00025,2]
[311224124,1704987031957,-287.97,0.00026535,2]
[311224125,1704987031967,-722.47643247,0.00027392,2]
[311224126,1704987031976,-325.92799089,0.00028238,2]
[311224127,1704987031985,-300.0,0.00028238,2]
[311224128,1704987031995,-877.62221169,0.00028239,2]
[311224129,1704987032011,-825.57324601,0.00028239,2]
[311224130,1704987032020,-155.31360228,0.00028239,2]
[311224131,1704987032030,-452.74315171,0.00028239,2]
[311224132,1704987032051,-388.29904465,0.00028239,2]
[311224133,1704987032060,-230.88165684,0.00028239,2]
[311224134,1704987032069,-250.91812939,0.00028239,2]
[311224135,1704987032081,-380.39836202,0.00028239,2]
[311224136,1704987032091,-697.8377058,0.00028239,2]
[311224137,1704987032100,-158.33436037,0.00028239,2]
[311224138,1704987032110,-225.63366431,0.00028239,2]
[311224139,1704987032123,-415.786481,0.00028239,2]
[311224140,1704987032132,-246.5136,0.00028239,2]
[311224141,1704987032141,-393.16851654,0.00028239,2]
[311224142,1704987032151,-302.84681763,0.00028239,2]
[311224143,1704987032160,-157.53460268,0.00028239,7]
[311224144,1704987032171,-1796.73468965,0.00028239,2]
[311224145,1704987032192,-1233.33600585,0.00028239,2]
[311224146,1704987032201,-2398.89574904,0.00028239,2]
[311224147,1704987032211,-303.43373299,0.00028239,2]
[311224148,1704987032220,-217.19371282,0.00028239,2]
[311224149,1704987032230,-155.0,0.00028239,2]
[311224150,1704987032240,-3827.7973834,0.0002824,2]
[311224151,1704987032249,-3721.54291005,0.0002824,2]
[311224152,1704987032259,-23642.29254464,0.00028241,2]
[311224153,1704987032271,-955.76,0.00028241,2]
[311224154,1704987032283,-613.45871416,0.00028241,2]
[311224155,1704987032293,-196.78,0.00028251,2]
[311224156,1704987032302,-180.38,0.00028269,2]
[311224157,1704987032311,-1619.7059234,0.0002834,2]
[311224159,1704987032321,-89.41239605,0.0002834,2]
[311224164,1704987032363,-110.58760395,0.0002834,2]
[311224165,1704987032375,-436.13,0.00028366,2]
[311224166,1704987032385,-9105.22,0.00028396,2]
[311224167,1704987032395,-436.13,0.00028525,2]
[311224168,1704987032603,-436.13,0.00028684,2]
[311224169,1704987032613,-320.0,0.00028693,2]
[311224170,1704987032626,-156.57,0.00028693,2]
[311224171,1704987032635,-287.97,0.00028799,2]
[311224172,1704987032645,-436.13,0.00028843,2]
[311224173,1704987032655,-436.13,0.00029003,2]
[311224174,1704987032665,-156.57,0.00029183,2]
[311224175,1704987032675,-180.38,0.00029248,2]
[311224176,1704987032686,-164.56,0.00029329,2]
[311224177,1704987032696,-156.57,0.00029673,2]
[311224178,1704987032705,-419.33476208,0.00029853,2]
[311224179,1704987032715,-2548.35015776,0.0003,4]
[311224180,1704987032725,-180.38,0.00030226,2]
[311224181,1704987032735,-205.0,0.00030362,2]
[311224182,1704987032744,-420.0,0.0003049,2]
[311224183,1704987032754,-380.77500368,0.000309,2]
[311224184,1704987032764,-179.6665634,0.000309,5]
[311224185,1704987032774,-244.2351669,0.00030926,2]
[311224186,1704987032784,-252.37420242,0.00030942,4]
[311224187,1704987032795,-244.2351669,0.00030963,2]
[311224188,1704987032815,-156.61,0.00030989,2]
[311224189,1704987032829,-279064.30075638,0.00030999,2]
[311224190,1704987032857,-4381.47880999,0.00030999,2]
[311224191,1704987032875,-1909.034384,0.00030999,2]
[311224204,1704987037925,-737.625,0.00024285,2]
[311224205,1704987037940,-526.93895841,0.00030361,4]
[311224206,1704987037949,-204.0,0.00030362,2]
[311224207,1704987037959,-4476.01504963,0.00030999,2]
[311224208,1704987037969,-244.2351669,0.00031,2]
[311224209,1704987037979,-920.0,0.00031026,2]
[311224210,1704987037988,-287.97,0.00031063,2]
[311224211,1704987037998,-650.81684476,0.00031097,4]
[311224212,1704987038012,-395.7196382,0.00031097,4]
[311224213,1704987038021,-270.43975547,0.00031097,2]
[311224214,1704987038031,-221.42704534,0.00031097,2]
[311224215,1704987038042,-155.78596393,0.00031097,4]
[311224216,1704987038051,-238.63,0.00031097,4]
[311224217,1704987038061,-158.1942,0.00031097,4]
[311224218,1704987038073,-269.62162648,0.00031098,4]
[311224219,1704987038083,-2000.0,0.00031098,4]
[311224220,1704987038093,-131406.01563852,0.00031099,2]
[311224221,1704987038102,-9236.0,0.000311,2]
[311224222,1704987038111,-180.38,0.00031205,2]
[311224223,1704987038121,-153.24,0.00031305,2]
[311224224,1704987038132,-170.01,0.00031437,2]
[311224225,1704987038143,-160.31,0.00031972,2]
[311224226,1704987038153,-57492.22023733,0.00032,2]
[311224227,1704987038162,-170.01,0.00032066,2]
[311224228,1704987038172,-188.83365057,0.00032112,2]
[311224229,1704987038181,-523.04000734,0.00032119,4]
[311224230,1704987038192,-194.53890477,0.00032119,4]
[311224231,1704987038201,-167.14187597,0.0003212,4]
[311224232,1704987038210,-3614.74809611,0.0003212,4]
[311224233,1704987038220,-16013.43789167,0.00032122,4]
[311224234,1704987038230,-576.766264,0.00032122,4]
[311224235,1704987038239,-155.40173906,0.00032122,4]
[311224236,1704987038249,-352.7615835,0.00032122,4]
[311224237,1704987038258,-26849.57380609,0.00032122,4]
[311224238,1704987038267,-1046.51724463,0.00032122,4]
[311224239,1704987038277,-155.55451817,0.00032122,4]
[311224240,1704987038286,-1058.5073427,0.00032122,4]
[311224241,1704987038296,-1331.10050194,0.00032122,4]
[311224242,1704987038305,-5585.20483925,0.00032122,4]
[311224243,1704987038314,-936.25729366,0.00032123,4]
[311224244,1704987038323,-939.01597948,0.00032123,4]
[311224245,1704987038333,-559.19420109,0.00032124,4]
[311224246,1704987038342,-15672.84149136,0.00032124,3]
[311224247,1704987038351,-180.38,0.00032183,2]
[311224249,1704987038361,-153.24,0.00032445,2]
[311224251,1704987038369,-170.01,0.00032695,2]
[311224253,1704987038378,-205.0,0.00032832,6]
[311224255,1704987038391,-331.07,0.00032877,15]
[311224256,1704987038400,-180.38,0.00033162,2]
[311224257,1704987038409,-170.01,0.00033323,2]
[311224258,1704987038418,-287.97,0.00033327,2]
[311224259,1704987038427,-153.24,0.00033584,2]
[311224260,1704987038437,-170.01,0.00033952,2]
[311224261,1704987038446,-2536.18673685,0.00033996,4]
[311224262,1704987038455,-1028.6792883,0.00033996,2]
[311224263,1704987038464,-175.37272974,0.00033996,4]
[311224265,1704987038474,-2684.29646221,0.00033997,4]
[311224267,1704987038483,-1000.0,0.00034,4]
[311224269,1704987038493,-226.49248168,0.00034,2]
[311224271,1704987038501,-156.01510386,0.00034,2]
[311224273,1704987038511,-180.38,0.0003414,2]
[311224275,1704987038520,-920.0,0.00034474,2]
[311224277,1704987038529,-5089.462331,0.0003452,2]
[311224279,1704987038538,-402.006702,0.0003452,2]
[311224281,1704987038547,-209.14,0.00034521,2]
[311224283,1704987038556,-170.01,0.00034581,2]
[311224285,1704987038566,-179.6665634,0.0003465,7]
[311224287,1704987038576,-200.0,0.00034654,2]
[311224289,1704987038585,-180.0,0.00034658,2]
[311224291,1704987038594,-153.24,0.00034724,2]
[311224293,1704987038604,-7634.193497,0.00034794,2]
[311224295,1704987038613,-603.010053,0.00034794,2]
[311224297,1704987038622,-10178.924663,0.00034931,2]
[311224299,1704987038635,-804.013404,0.00034931,2]
[311224301,1704987038645,-16409.26239194,0.00035,2]
[311224303,1704987038655,-3819.43469334,0.00035,2]
[311224305,1704987038665,-15716.17370559,0.00035,7]
[311224307,1704987038675,-2500.0,0.00035,2]
[311224326,1704987038684,-449.99999901,0.00035,30]
[311224328,1704987038854,-1200.0,0.00035,36]
[311224330,1704987038864,-255.06116576,0.00035,4]
[311224332,1704987038873,-12723.655829,0.00035068,2]
[311224334,1704987038886,-1005.016755,0.00035068,2]
[311224335,1704987038896,-180.38,0.00035119,2]
[311224336,1704987038905,-160.31,0.00035216,2]
[311224337,1704987038915,-205.0,0.00035302,11]
[311224338,1704987038924,-17813.118161,0.00035342,2]
[311224339,1704987038934,-1407.023457,0.00035342,2]
[311224340,1704987038944,-287.97,0.00035591,2]
[311224341,1704987038953,-153.24,0.00035864,2]
[311224342,1704987038962,-1407.09849568,0.00036,4]
[311224343,1704987038972,-150.45,0.00036,2]
[311224344,1704987038982,-271.6738824,0.00036089,2]
[311224345,1704987038991,-271.67388236,0.00036089,2]
[311224346,1704987039003,-271.67388236,0.00036089,2]
[311224347,1704987039013,-180.38,0.00036097,2]
[311224348,1704987039022,-2883.55,0.0003645,2]
[311224349,1704987039032,-1514.33651228,0.00036502,2]
[311224350,1704987039041,-2603.76124956,0.00036599,2]
[311224351,1704987039050,-104948.50515734,0.00036602,14]
[311224352,1704987039060,-74898.98269613,0.00036602,12]
[311224353,1704987039069,-3744.94913481,0.00036602,10]
[311224354,1704987039078,-331.07,0.00036613,15]
[311224355,1704987039087,-500.0,0.0003674,7]
[311224356,1704987039097,-271.67388236,0.00036863,2]
[311224357,1704987039107,-500.0,0.00036881,7]
[311224358,1704987039116,-5000.0,0.00037,3]
[311224359,1704987039125,-153.24,0.00037004,2]
[311224360,1704987039138,-742.955148,0.0003701,2]
[311224361,1704987039148,-500.0,0.00037023,7]
[311224362,1704987039157,-180.38,0.00037076,2]
[311224363,1704987039166,-53062.1448006,0.0003709,10]
[311224364,1704987039175,-150.0,0.000371,2]
[311224365,1704987039184,-500.0,0.00037165,7]
[311224366,1704987039195,-500.0,0.00037307,7]
[311224367,1704987039205,-500.0,0.00037437,120]
[311224368,1704987039214,-150.0,0.00037437,30]
[311224369,1704987039223,-445.76274583,0.00037437,120]
[311224370,1704987039232,-500.0,0.00037448,7]
[311224371,1704987039241,-742.955148,0.00037472,2]
[311224372,1704987039252,-1490.0,0.000375,12]
[311224373,1704987039261,-2624.88148919,0.000375,25]
[311224374,1704987039271,-226.06087,0.00037534,14]
[311224375,1704987039281,-500.0,0.0003759,7]
[311224376,1704987039291,-150.0,0.00037671,120]
[311224377,1704987039300,-500.0,0.00037732,7]
[311224378,1704987039309,-205.0,0.00037772,16]
[311224379,1704987039319,-235.06,0.000378,3]
[311224380,1704987039329,-235.06,0.000378,3]
[311224381,1704987039338,-235.06,0.000378,3]
[311224382,1704987039347,-235.06,0.000378,3]
[311224383,1704987039356,-235.06,0.000378,3]
[311224384,1704987039366,-235.06,0.000378,3]
[311224385,1704987039375,-235.06,0.000378,3]
[311224386,1704987039388,-235.06,0.000378,3]
[311224387,1704987039398,-235.06,0.000378,3]
[311224388,1704987039407,-235.06,0.000378,3]
[311224389,1704987039416,-235.06,0.000378,3]
[311224390,1704987039425,-235.06,0.000378,3]
[311224391,1704987039434,-235.06,0.000378,3]
[311224392,1704987039444,-235.06,0.000378,3]
[311224393,1704987039453,-235.06,0.000378,3]
[311224394,1704987039462,-235.06,0.000378,3]
[311224395,1704987039472,-235.06,0.000378,3]
[311224396,1704987039489,-235.06,0.000378,3]
[311224397,1704987039499,-235.06,0.000378,3]
[311224398,1704987039509,-235.06,0.000378,3]
[311224399,1704987039518,-287.97,0.00037855,2]
[311224400,1704987039528,-500.0,0.00037873,7]
[311224401,1704987039541,-95030.6870905,0.000379,2]
[311224402,1704987039550,-920.0,0.00037921,2]
[311224403,1704987039559,-742.955148,0.00037935,2]
[311224404,1704987039569,-1028.92,0.0003799,10]
[311224405,1704987039578,-900.0,0.00038,39]
[311224406,1704987039587,-3060.04420173,0.00038,4]
[311224407,1704987039596,-500.0,0.00038015,7]
[311224408,1704987039606,-180.38,0.00038054,2]
[311224409,1704987039615,-1514.33651213,0.00038081,2]
[311224410,1704987039624,-153.84,0.00038119,2]
[311224411,1704987039636,-500.0,0.00038157,7]
[311224412,1704987039645,-500.0,0.00038299,7]
[311224413,1704987039654,-22735.9795329,0.0003833,10]
[311224414,1704987039664,-1348.71024754,0.00038356,30]
[311224416,1704987039673,-742.955148,0.00038398,2]
[311224417,1704987039683,-7886.48725579,0.000384,2]
[311224418,1704987039692,-179.6665634,0.000384,8]
[311224419,1704987039702,-500.0,0.0003844,7]
[311224420,1704987039711,-160.31,0.00038459,2]
[311224421,1704987039721,-500.0,0.00038582,7]
[311224422,1704987039730,-226.06087,0.0003863,14]
[311224423,1704987039740,-500.0,0.00038724,7]
[311224424,1704987039749,-184.87968352,0.000388,24]
[311224425,1704987039759,-975.0,0.000388,16]
[311224426,1704987039768,-271.67388236,0.00038818,2]
[311224427,1704987039777,-742.955148,0.0003886,2]
[311224428,1704987039787,-500.0,0.00038865,7]
[311224429,1704987039796,-2868.039076,0.00038948,2]
[311224430,1704987039805,-281.73212903,0.0003898,2]
[311224431,1704987039815,-1427.43973993,0.00039,2]
[311224432,1704987039824,-282.68132749,0.00039,4]
[311224433,1704987039833,-235.06,0.00039,3]
[311224434,1704987039842,-235.06,0.00039,3]
[311224435,1704987039852,-235.06,0.00039,3]
[311224436,1704987039861,-235.06,0.00039,3]
[311224437,1704987039871,-235.06,0.00039,3]
[311224438,1704987039880,-235.06,0.00039,3]
[311224439,1704987039893,-235.06,0.00039,3]
[311224440,1704987039903,-235.06,0.00039,3]
[311224441,1704987039913,-235.06,0.00039,3]
[311224442,1704987039923,-235.06,0.00039,3]
[311224443,1704987039932,-235.06,0.00039,3]
[311224444,1704987039942,-235.06,0.00039,3]
[311224445,1704987039951,-235.06,0.00039,3]
[311224446,1704987039960,-235.06,0.00039,3]
[311224447,1704987039970,-235.06,0.00039,3]
[311224448,1704987039979,-235.06,0.00039,3]
[311224449,1704987039989,-235.06,0.00039,3]
[311224450,1704987040004,-235.06,0.00039,3]
[311224451,1704987040018,-235.06,0.00039,3]
[311224452,1704987040032,-235.06,0.00039,3]
[311224453,1704987040042,-500.0,0.00039007,7]
[311224454,1704987040051,-180.38,0.00039033,2]
[311224455,1704987040060,-13975.76761962,0.00039038,8]
[311224456,1704987040069,-2113.88748981,0.00039038,7]
[311224457,1704987040079,-743.12758454,0.00039038,3]
[311224458,1704987040088,-933.18034252,0.00039038,7]
[311224459,1704987040097,-11798.48020059,0.00039038,8]
[311224460,1704987040107,-500.0,0.00039149,7]
[311224461,1704987040116,-878.56619909,0.000392,2]
[311224462,1704987040126,-500.0,0.000392,2]
[311224463,1704987040137,-165.28,0.0003926,2]
[311224464,1704987040146,-153.84,0.00039274,2]
[311224465,1704987040155,-500.0,0.00039291,7]
[311224466,1704987040165,-543.22168969,0.00039347,7]
[311224467,1704987040174,-3237.8087219,0.000394,4]
[311224468,1704987040183,-500.0,0.00039432,7]
[311224469,1704987040194,-4548.95757275,0.000395,4]
[311224470,1704987040203,-196.78,0.00039552,2]
[311224471,1704987040213,-500.0,0.00039574,7]
[311224472,1704987040222,-5800.0,0.00039583,2]
[311224473,1704987040232,-209.14,0.0003963,2]
[311224474,1704987040241,-1514.33651213,0.0003966,2]
[311224475,1704987040250,-500.0,0.00039716,7]
[311224476,1704987040260,-226.06087,0.00039726,14]
[311224477,1704987040269,-428.28052565,0.000398,4]
[311224478,1704987040278,-500.0,0.00039857,7]
[311224479,1704987040288,-164.92968348,0.000399,2]
[311224480,1704987040297,-200.0,0.00039941,15]
[311224481,1704987040306,-7091.30734206,0.00039941,15]
[311224482,1704987040316,-634.17354001,0.00039943,15]
[311224483,1704987040325,-9290.76656589,0.00039945,15]
[311224484,1704987040334,-5309.00946619,0.00039947,15]
[311224485,1704987040342,-3096.92218861,0.00039948,15]
[311224486,1704987040352,-300.59276321,0.00039949,15]
[311224487,1704987040360,-200.7921016,0.0003995,10]
[311224488,1704987040370,-200.0,0.0003995,10]
[311224490,1704987040379,-9290.76656589,0.0003995,15]
[311224492,1704987040389,-200.0,0.00039951,10]
[311224494,1704987040398,-5419.61383014,0.00039951,10]
[311224495,1704987040409,-12409.78784868,0.00039952,10]
[311224496,1704987040418,-1109.8036951,0.00039952,10]
[311224497,1704987040427,-634.17354001,0.00039953,15]
[311224498,1704987040436,-332.28562265,0.00039953,15]
[311224499,1704987040446,-526.0373357,0.00039953,10]
[311224500,1704987040455,-3096.92218861,0.00039954,15]
[311224501,1704987040464,-9290.76656592,0.00039954,10]
[311224502,1704987040473,-200.0,0.00039954,15]
[311224503,1704987040483,-200.0,0.00039954,10]
[311224504,1704987040492,-581.49983971,0.00039955,10]
[311224505,1704987040501,-581.49983971,0.00039955,10]
[311224506,1704987040511,-872.24975953,0.00039955,15]
[311224507,1704987040520,-872.24975953,0.00039955,15]
[311224508,1704987040530,-202.80622168,0.00039955,10]
[311224509,1704987040539,-290.74991987,0.00039955,10]
[311224510,1704987040549,-290.74991987,0.00039955,10]
[311224511,1704987040558,-1526.43707925,0.00039956,10]
[311224512,1704987040567,-1526.43707925,0.00039956,10]
[311224513,1704987040576,-634.17354001,0.00039956,15]
[311224514,1704987040585,-200.7921016,0.00039956,10]
[311224515,1704987040594,-200.0,0.00039956,10]
[311224516,1704987040603,-310.74503465,0.00039957,10]
[311224517,1704987040613,-1526.43707925,0.00039957,10]
[311224518,1704987040622,-200.7921016,0.00039958,10]
[311224519,1704987040631,-12409.78784868,0.00039958,10]
[311224520,1704987040643,-12409.78784868,0.00039958,10]
[311224521,1704987040653,-9290.76656592,0.00039958,10]
[311224522,1704987040662,-200.0,0.00039959,10]
[311224523,1704987040671,-200.0,0.00039959,10]
[311224524,1704987040680,-202.80622168,0.00039959,10]
[311224525,1704987040690,-200.0,0.00039959,10]
[311224526,1704987040699,-200.0,0.00039959,10]
[311224527,1704987040708,-5309.00946619,0.0003996,15]
[311224528,1704987040718,-12409.78784868,0.0003996,10]
[311224529,1704987040727,-200.0,0.0003996,10]
[311224530,1704987040737,-202.80622168,0.0003996,10]
[311224531,1704987040746,-290.74991987,0.0003996,10]
[311224532,1704987040755,-7091.30734206,0.00039961,15]
[311224533,1704987040764,-9290.76656592,0.00039961,10]
[311224534,1704987040774,-200.0,0.00039961,10]
[311224535,1704987040783,-12409.78784868,0.00039961,10]
[311224536,1704987040793,-200.0,0.00039962,15]
[311224537,1704987040803,-1575.84607598,0.00039962,15]
[311224538,1704987040814,-200.0,0.00039963,10]
[311224539,1704987040823,-7091.30734206,0.00039963,15]
[311224540,1704987040832,-332.28562265,0.00039963,15]
[311224541,1704987040841,-7091.30734206,0.00039963,15]
[311224542,1704987040850,-2757.73063305,0.00039963,10]
[311224543,1704987040860,-1575.84607598,0.00039963,15]
[311224544,1704987040869,-2757.73063305,0.00039964,10]
[311224545,1704987040879,-3096.92218861,0.00039964,15]
[311224546,1704987040893,-872.24975953,0.00039965,15]
[311224547,1704987040902,-200.0,0.00039965,10]
[311224548,1704987040911,-332.28562265,0.00039967,15]
[311224549,1704987040921,-300.59276321,0.00039967,15]
[311224550,1704987040931,-5309.00946619,0.00039968,15]
[311224551,1704987040941,-7091.30734206,0.00039968,15]
[311224552,1704987040950,-200.0,0.00039969,15]
[311224553,1704987040960,-16258.84149038,0.00039969,10]
[311224554,1704987040969,-2757.73063305,0.00039969,10]
[311224555,1704987040979,-12409.78784868,0.0003997,10]
[311224556,1704987040989,-200.0,0.00039971,15]
[311224557,1704987040999,-9290.76656589,0.00039971,15]
[311224558,1704987041013,-9290.76656592,0.00039971,10]
[311224559,1704987041023,-200.0,0.00039971,10]
[311224560,1704987041032,-7091.30734206,0.00039971,15]
[311224561,1704987041042,-1526.43707925,0.00039972,10]
[311224562,1704987041051,-200.0,0.00039972,15]
[311224563,1704987041060,-200.0,0.00039972,10]
[311224564,1704987041070,-1109.8036951,0.00039972,10]
[311224565,1704987041079,-12409.78784868,0.00039973,10]
[311224566,1704987041089,-200.0,0.00039973,10]
[311224567,1704987041099,-200.0,0.00039974,10]
[311224568,1704987041109,-526.0373357,0.00039976,10]
[311224569,1704987041119,-581.49983971,0.00039976,10]
[311224570,1704987041129,-200.0,0.00039977,10]
[311224571,1704987041142,-1575.84607598,0.00039978,15]
[311224572,1704987041151,-12409.78784868,0.00039978,10]
[311224573,1704987041161,-16258.84149038,0.00039978,10]
[311224574,1704987041170,-200.0,0.00039978,15]
[311224575,1704987041179,-2757.73063305,0.00039979,10]
[311224576,1704987041188,-202.80622168,0.00039979,10]
[311224577,1704987041198,-310.74503465,0.00039979,10]
[311224578,1704987041208,-300.59276321,0.0003998,15]
[311224579,1704987041217,-95030.6870905,0.0003998,5]
[311224580,1704987041226,-200.0,0.0003998,10]
[311224581,1704987041236,-310.74503465,0.0003998,10]
[311224582,1704987041245,-200.0,0.00039981,10]
[311224583,1704987041255,-5419.61383014,0.00039981,10]
[311224584,1704987041264,-16258.84149038,0.00039982,10]
[311224585,1704987041275,-200.0,0.00039983,10]
[311224586,1704987041284,-200.0,0.00039984,10]
[311224587,1704987041294,-581.49983971,0.00039985,10]
[311224588,1704987041303,-1109.8036951,0.00039985,10]
[311224589,1704987041312,-200.0,0.00039986,10]
[311224590,1704987041322,-1109.8036951,0.00039987,10]
[311224591,1704987041332,-310.74503465,0.00039988,10]
[311224592,1704987041343,-200.7921016,0.00039988,10]
[311224593,1704987041352,-526.0373357,0.00039988,10]
[311224594,1704987041362,-526.0373357,0.00039989,10]
[311224595,1704987041372,-5419.61383014,0.00039989,10]
[311224596,1704987041382,-16258.84149038,0.0003999,10]
[311224598,1704987041503,-5419.61383014,0.0003999,10]
[311224600,1704987041528,-290.74991987,0.0003999,10]
[311224602,1704987041538,-95030.6870905,0.0003999,5]
[311224603,1704987041547,-500.0,0.00039999,7]
[311224604,1704987041555,-100000.0,0.0004,10]
[311224605,1704987041565,-956.60549549,0.0004,2]
[311224606,1704987041574,-33663.97291947,0.0004,15]
[311224607,1704987041583,-22008.0721351,0.0004,4]
[311224608,1704987041592,-155.0,0.0004,2]
[311224609,1704987041601,-414.81058115,0.0004,30]
[311224610,1704987041610,-4100.81507999,0.0004,120]
[311224611,1704987041620,-7646.0492921,0.0004,3]
[311224612,1704987041629,-609.104778,0.0004,3]
[311224613,1704987041641,-300.0,0.0004,41]
[311224614,1704987041650,-400.0,0.0004,120]
[311224615,1704987041659,-659.96111596,0.0004,10]
[311224616,1704987041668,-966.48279954,0.0004,4]
[311224617,1704987041677,-155.20936272,0.0004,3]
[311224618,1704987041686,-822.71508083,0.0004,7]
[311224619,1704987041695,-669.32141845,0.0004,4]
[311224620,1704987041705,-521.97011643,0.0004,2]
[311224621,1704987041714,-223.65882795,0.0004,4]
[311224622,1704987041723,-46938.26402552,0.0004,4]
[311224623,1704987041733,-350.0,0.0004,120]
[311224624,1704987041743,-3137.73061496,0.0004,13]
[311224625,1704987041752,-1919.0,0.0004,2]
[311224626,1704987041761,-255.0,0.0004,12]
[311224627,1704987041770,-428.63949,0.0004,10]
[311224628,1704987041780,-255.0,0.0004,12]
[311224629,1704987041789,-6209.75120874,0.0004,2]
[311224630,1704987041799,-210.38937704,0.0004,2]
[311224631,1704987041808,-168.64593695,0.00040008,30]
[311224632,1704987041817,-180.38,0.00040011,2]
[311224633,1704987041827,-543.22168969,0.00040034,30]
[311224634,1704987041836,-287.97,0.00040119,2]
[311224635,1704987041845,-500.0,0.00040141,7]
[311224636,1704987041854,-235.06,0.000402,4]
[311224637,1704987041864,-235.06,0.000402,4]
[311224638,1704987041873,-235.06,0.000402,4]
[311224639,1704987041882,-235.06,0.000402,4]
[311224640,1704987041893,-235.06,0.000402,4]
[311224641,1704987041903,-235.06,0.000402,4]
[311224642,1704987041912,-235.06,0.000402,4]
[311224643,1704987041921,-235.06,0.000402,4]
[311224644,1704987041930,-235.06,0.000402,4]
[311224645,1704987041939,-235.06,0.000402,4]
[311224646,1704987041948,-235.06,0.000402,4]
[311224647,1704987041957,-235.06,0.000402,4]
[311224648,1704987041966,-235.06,0.000402,4]
[311224649,1704987041975,-235.06,0.000402,4]
[311224650,1704987041985,-235.06,0.000402,4]
[311224651,1704987041994,-235.06,0.000402,4]
[311224652,1704987042007,-235.06,0.000402,4]
[311224653,1704987042017,-235.06,0.000402,4]
[311224654,1704987042026,-235.06,0.000402,4]
[311224655,1704987042035,-235.06,0.000402,4]
[311224656,1704987042045,-205.0,0.00040241,21]
[311224657,1704987042054,-500.0,0.00040282,7]
[311224658,1704987042065,-1694.0,0.000403,2]
[311224659,1704987042074,-481.32142152,0.000403,2]
[311224660,1704987042083,-543.22168969,0.00040326,30]
[311224661,1704987042093,-183.92851571,0.00040343,30]
[311224662,1704987042102,-331.07,0.00040349,15]
[311224663,1704987042112,-500.0,0.00040424,7]
[311224664,1704987042121,-153.84,0.0004043,2]
[311224665,1704987042130,-153.6883431,0.00040449,30]
[311224666,1704987042142,-3301.085,0.0004048,2]
[311224667,1704987042151,-500.0,0.00040566,7]